bitfinex/quotes_SOLUSD_20240530
["timestamp","ask_amount","ask_price","bid_price","bid_amount"]
[1717044868364,2.1722,170.33,170.28,7.47]
[1717044870469,2.1721,170.34,170.29,7.47]
[1717044870668,6.2809,170.38,170.3,7.47]
[1717044870669,2.172,170.35,170.3,7.47]
[1717044873174,2.172,170.35,170.29,2.1727]
[1717044873374,2.172,170.35,170.29,9.6427]
[1717044875869,2.172,170.35,170.3,2.1726]
[1717044876069,2.1719,170.36,170.3,2.1726]
[1717044876367,2.1719,170.36,170.3,9.6426]
[1717044879281,2.172,170.35,170.29,2.1727]
[1717044879461,2.172,170.35,170.29,9.6427]
[1717044879654,2.1721,170.34,170.29,2.1727]
[1717044880054,2.1721,170.34,170.28,9.6428]
[1717044880256,2.1721,170.34,170.28,2.1728]
[1717044880471,2.1721,170.34,170.28,9.6428]
[1717044880664,2.1722,170.33,170.28,2.1728]
[1717044881178,2.1722,170.33,170.27,2.1729]
[1717044881351,2.1722,170.33,170.28,7.47]
[1717044881554,2.1722,170.33,170.28,9.6428]
[1717044882377,2.1722,170.33,170.28,2.1728]
[1717044882581,2.1723,170.33,170.27,2.1729]
[1717044882878,2.1723,170.32,170.27,9.6429]
[1717044883671,2.1725,170.31,170.25,9.6432]
[1717044884073,2.1726,170.3,170.25,9.6432]
[1717044884254,2.1725,170.31,170.25,9.6432]
[1717044884573,2.1725,170.31,170.26,9.6431]
[1717044886752,2.1725,170.31,170.26,7.47]
[1717044887549,2.1725,170.31,170.26,9.6431]
[1717044888156,2.1724,170.32,170.26,9.6431]
[1717044888678,2.1724,170.32,170.27,7.47]
[1717044888981,2.1724,170.32,170.26,2.1731]
[1717044889162,2.1724,170.32,170.27,9.643]
[1717044889371,2.1724,170.32,170.27,2.173]
[1717044889565,2.1724,170.32,170.27,9.643]
[1717044891969,2.1722,170.33,170.27,9.643]
[1717044892163,2.1724,170.32,170.27,2.173]
[1717044892383,2.1724,170.32,170.27,9.643]
[1717044892692,2.1723,170.33,170.27,9.643]
[1717044892985,2.1723,170.32,170.27,9.643]
[1717044893390,2.1722,170.33,170.27,2.173]
[1717044893567,2.1722,170.33,170.27,9.6429]
[1717044896391,2.1722,170.33,170.27,2.1729]
[1717044899398,2.1723,170.32,170.27,2.1729]
[1717044899581,2.1725,170.31,170.22,8.6943]
[1717044899899,2.1725,170.31,170.25,9.6431]
[1717044900073,2.1725,170.31,170.26,2.1731]
[1717044900267,2.1726,170.3,170.21,10.9339]
[1717044900470,2.1726,170.3,170.25,2.1732]
[1717044900677,2.1729,170.28,170.19,13.0439]
[1717044900868,2.173,170.27,170.22,2.1735]
[1717044901069,22.329,170.3,170.22,2.1735]
[1717044901070,2.1729,170.28,170.22,2.1735]
[1717044901495,2.1729,170.28,170.23,2.1735]
[1717044901876,2.173,170.27,170.22,2.1736]
[1717044902898,2.173,170.27,170.17,30.5816]
[1717044902899,2.1731,170.26,170.2,2.1739]
[1717044903070,2.1731,170.26,170.19,2.1739]
[1717044903264,2.1733,170.25,170.2,7.47]
[1717044903471,2.1731,170.26,170.22,7.47]
[1717044904277,2.1731,170.26,170.21,7.47]
[1717044904476,2.1731,170.26,170.21,9.6437]
[1717044904672,2.1731,170.26,170.21,2.1737]
[1717044904899,2.1731,170.26,170.21,9.6437]
[1717044905892,6.1833,170.29,170.22,7.47]
[1717044905893,2.173,170.27,170.22,7.47]
[1717044906688,2.173,170.27,170.22,9.6436]
[1717044907181,2.1729,170.28,170.22,2.1736]
[1717044907381,2.1729,170.28,170.24,7.47]
[1717044907590,2.1728,170.28,170.22,2.1736]
[1717044907791,2.1728,170.28,170.24,7.47]
[1717044908390,2.1728,170.29,170.24,7.47]
[1717044909885,2.1728,170.29,170.24,9.6433]
[1717044910196,2.1726,170.3,170.24,2.1733]
[1717044910375,2.1726,170.3,170.25,7.47]
[1717044910577,2.1726,170.3,170.25,9.6432]
[1717044911185,2.1726,170.3,170.26,7.47]
[1717044911387,2.1726,170.3,170.24,2.1733]
[1717044911585,2.1726,170.3,170.26,7.47]
[1717044914202,2.1725,170.31,170.26,7.47]
[1717044914898,2.1725,170.31,170.25,2.1732]
[1717044915102,2.1725,170.31,170.26,7.47]
[1717044915775,2.1725,170.31,170.26,9.6431]
[1717044915997,2.1724,170.32,170.26,9.6431]
[1717044916402,6.0143,170.33,170.26,7.47]
[1717044916403,2.1725,170.31,170.26,7.47]
[1717044917685,2.1726,170.3,170.26,7.47]
[1717044918981,2.1726,170.3,170.24,2.1733]
[1717044919182,2.1726,170.3,170.24,7.47]
[1717044920086,2.1726,170.3,170.24,9.6433]
[1717044921001,2.1726,170.3,170.25,2.1732]
[1717044921210,2.1725,170.31,170.25,9.6432]
[1717044921580,2.1725,170.31,170.26,7.47]
[1717044923513,2.1724,170.32,170.26,9.643]
[1717044925207,2.1724,170.32,170.27,9.643]
[1717044926211,2.1724,170.32,170.27,7.47]
[1717044926626,2.1724,170.32,170.26,9.6431]
[1717044927431,6.0143,170.33,170.27,2.173]
[1717044927716,2.1725,170.31,170.26,9.643]
[1717044928300,2.1725,170.31,170.26,7.47]
[1717044928301,2.1726,170.3,170.26,7.47]
[1717044928613,2.1729,170.28,170.23,9.6434]
[1717044929300,2.173,170.27,170.22,2.1736]
[1717044929525,8.333,170.27,170.22,2.1736]
[1717044929816,2.1731,170.26,170.21,9.6437]
[1717044930505,8.333,170.27,170.21,9.6437]
[1717044931511,15.8185,170.29,170.21,9.6437]
[1717044931512,8.3331,170.26,170.21,2.1737]
[1717044932099,24.1516,170.26,170.21,2.1737]
[1717044932298,2.1733,170.25,170.19,2.1739]
[1717044932525,2.1733,170.25,170.19,9.6439]
[1717044933192,2.1734,170.24,170.19,9.6439]
[1717044933389,2.1734,170.24,170.19,2.1739]
[1717044933592,8.3609,170.24,170.19,9.6439]
[1717044934416,2.1734,170.24,170.19,9.6439]
[1717044934623,2.1733,170.25,170.2,7.47]
[1717044934811,17.9916,170.26,170.21,9.6437]
[1717044935014,2.173,170.27,170.21,9.6437]
[1717044935218,2.173,170.27,170.22,9.6436]
[1717044936521,8.3363,170.28,170.22,9.6436]
[1717044937110,2.173,170.27,170.22,9.6436]
[1717044937636,2.173,170.27,170.23,7.47]
[1717044937806,2.173,170.27,170.13,6.5891]
[1717044937807,17.367,170.3,170.24,7.47]
[1717044938009,2.1729,170.28,170.24,7.47]
[1717044939313,4.3447,170.32,170.24,7.47]
[1717044939610,2.173,170.27,170.24,7.47]
[1717044940707,2.1728,170.28,170.24,7.47]
[1717044944840,2.1728,170.28,170.19,67.0873]
[1717044945014,2.1728,170.28,170.24,7.47]
[1717044945738,2.1728,170.28,170.23,7.47]
[1717044946520,2.1728,170.28,170.24,7.47]
[1717044946928,2.1728,170.29,170.24,9.6433]
[1717044948649,2.1729,170.28,170.24,7.47]
[1717044949821,2.1728,170.29,170.24,7.47]
[1717044951643,2.1729,170.28,170.22,2.1736]
[1717044951857,2.173,170.27,170.22,9.6436]
[1717044952621,2.1729,170.28,170.22,9.6436]
[1717044953022,2.1733,170.25,170.2,2.1739]
[1717044953318,4.3456,170.29,170.19,9.644]
[1717044953319,2.1734,170.24,170.19,9.644]
[1717044953723,2.1733,170.25,170.19,9.644]
[1717044955940,2.1733,170.25,170.2,2.1739]
[1717044956135,8.4167,170.25,170.2,2.1739]
[1717044956438,8.4167,170.25,170.19,7.47]
[1717044956439,2.1734,170.24,170.19,9.644]
[1717044956632,24.684,170.25,170.19,9.644]
[1717044957562,2.1734,170.24,170.19,9.644]
[1717044958336,2.1734,170.24,170.19,2.174]
[1717044958653,2.1736,170.23,170.17,2.1741]
[1717044958835,2.1736,170.23,170.17,9.6441]
[1717044959241,2.1734,170.24,170.18,7.47]
[1717044959435,2.1734,170.24,170.18,9.644]
[1717044959651,2.1735,170.23,170.18,9.644]
[1717044960243,2.1735,170.23,170.18,2.174]
[1717044960444,8.4908,170.23,170.18,2.174]
[1717044960832,2.1736,170.22,170.17,2.1742]
[1717044961045,8.4909,170.22,170.17,2.1742]
[1717044962259,23.5487,170.21,170.16,2.1743]
[1717044963346,23.5487,170.21,170.15,9.6445]
[1717044964236,23.5487,170.21,170.16,2.1744]
[1717044964560,2.1739,170.2,170.13,7.47]
[1717044964941,2.1739,170.2,170.15,2.1744]
[1717044965152,25.2841,170.2,170.15,2.1744]
[1717044965338,8.7543,170.19,170.14,2.1746]
[1717044966154,22.8511,170.2,170.13,7.47]
[1717044966459,2.1741,170.19,170.13,2.1748]
[1717044966662,8.4953,170.18,170.13,2.1748]
[1717044968238,8.4953,170.18,170.13,9.6448]
[1717044968461,8.4953,170.18,170.13,2.1748]
[1717044968657,8.4953,170.18,170.13,9.6448]
[1717044971754,8.4953,170.18,170.13,2.1748]
[1717044972677,2.1741,170.18,170.13,2.1748]
[1717044973050,2.174,170.19,170.15,7.47]
[1717044973262,2.1739,170.2,170.15,7.47]
[1717044973571,8.4945,170.2,170.15,7.47]
[1717044973751,8.4945,170.2,170.14,9.6446]
[1717044973951,2.174,170.19,170.14,2.1746]
[1717044974155,2.174,170.19,170.14,9.6446]
[1717044975366,2.174,170.19,170.14,2.1746]
[1717044975863,2.174,170.19,170.13,2.1747]
[1717044976065,2.1741,170.18,170.13,2.1747]
[1717044976578,2.1741,170.18,170.14,7.47]
[1717044982160,2.1743,170.17,170.14,7.47]
[1717044982352,2.1743,170.17,170.13,7.47]
[1717044983204,2.1743,170.17,170.12,2.1748]
[1717044983891,2.1743,170.17,170.13,7.47]
[1717044984362,2.1743,170.17,170.12,2.1748]
[1717044984561,2.1743,170.17,170.12,9.6448]
[1717044985565,2.1742,170.18,170.13,9.6448]
[1717044986076,2.1743,170.17,170.12,2.1749]
[1717044986271,2.1743,170.17,170.13,7.47]
[1717044986963,2.1741,170.18,170.13,9.6447]
[1717044987289,2.1741,170.18,170.13,7.47]
[1717044988662,2.1741,170.18,170.12,2.1748]
[1717044988863,2.1741,170.18,170.13,7.47]
[1717044990561,2.1741,170.18,170.13,9.6448]
[1717044991792,2.174,170.19,170.13,9.6448]
[1717044991965,16.4561,170.21,170.14,9.6446]
[1717044992165,16.4561,170.21,170.14,7.47]
[1717044992166,2.174,170.19,170.14,7.47]
[1717044992594,2.174,170.19,170.13,2.1747]
[1717044992974,2.1739,170.2,170.14,2.1746]
[1717044993865,2.1739,170.2,170.15,2.1745]
[1717044994592,2.1738,170.21,170.16,7.47]
[1717044996290,4.347,170.23,170.14,2.1746]
[1717044996471,2.1739,170.2,170.16,7.47]
[1717044997178,2.1738,170.21,170.15,2.1745]
[1717044997386,2.1738,170.21,170.16,7.47]
[1717044998272,2.1739,170.2,170.16,7.47]
[1717044999298,2.1739,170.2,170.14,2.1746]
[1717044999677,2.1739,170.2,170.15,7.47]
[1717045003585,2.174,170.19,170.15,7.47]
[1717045006099,2.1739,170.2,170.15,7.47]
[1717045011078,2.174,170.19,170.15,7.47]
[1717045011597,2.174,170.19,170.14,9.6446]
[1717045012396,2.174,170.19,170.15,7.47]
[1717045013284,21.30684276,170.23,170.15,7.47]
[1717045013285,2.1739,170.2,170.15,7.47]
[1717045013806,2.1739,170.2,170.14,2.1746]
[1717045014181,6.0052,170.19,170.14,2.1746]
[1717045014383,6.0052,170.19,170.14,9.6446]
[1717045014878,2.1741,170.18,170.12,2.1749]
[1717045015083,2.1741,170.18,170.13,7.47]
[1717045015299,2.1741,170.18,170.13,2.1747]
[1717045015602,8.1792,170.19,170.13,9.6447]
[1717045017094,8.1792,170.19,170.13,2.1747]
[1717045017409,8.1792,170.19,170.14,9.6446]
[1717045018399,6.0052,170.19,170.14,9.6446]
[1717045021907,6.0052,170.19,170.15,2.1745]
[1717045022110,6.0052,170.19,170.15,9.6445]
[1717045022713,6.0052,170.19,170.15,7.47]
[1717045023395,6.0052,170.19,170.15,9.6445]
[1717045025608,2.1739,170.2,170.15,9.6445]
[1717045032415,2.1739,170.2,170.15,2.1745]
[1717045032603,2.1739,170.2,170.15,9.6445]
[1717045035217,6.5416,170.23,170.15,9.6445]
[1717045035218,2.1738,170.21,170.15,9.6445]
[1717045036215,2.1738,170.21,170.15,2.1745]
[1717045036395,2.1738,170.21,170.16,7.47]
[1717045039723,2.1738,170.21,170.15,2.1745]
[1717045039923,2.1739,170.2,170.16,7.47]
[1717045040510,2.1739,170.2,170.15,2.1745]
[1717045040736,2.1739,170.2,170.16,7.47]
[1717045041101,2.1739,170.2,170.15,2.1745]
[1717045041296,6.3093,170.19,170.11,4.3499]
[1717045041606,6.3093,170.19,170.15,2.1745]
[1717045042226,6.3093,170.19,170.15,9.6445]
[1717045044221,6.3093,170.19,170.15,2.1745]
[1717045044923,6.3093,170.19,170.11,4.3499]
[1717045044924,6.3093,170.19,170.13,2.1746]
[1717045045108,22.7224,170.19,170.14,7.47]
[1717045045510,22.7224,170.19,170.14,9.6446]
[1717045045709,22.7224,170.19,170.14,2.1746]
[1717045045915,22.7224,170.19,170.14,9.6446]
[1717045046627,22.7224,170.19,170.11,4.3499]
[1717045046628,2.1743,170.17,170.11,9.645]
[1717045047003,19.13545964,170.17,170.11,9.645]
[1717045047621,25.61725964,170.17,170.12,7.47]
[1717045047914,6.4818,170.16,170.12,7.47]
[1717045048411,16.3346,170.16,170.12,2.1748]
[1717045048728,22.8164,170.16,170.12,2.1748]
[1717045050532,6.4818,170.16,170.12,2.1748]
[1717045050715,2.1743,170.17,170.12,2.1748]
[1717045051215,2.1743,170.17,170.13,7.47]
[1717045051610,2.1741,170.18,170.08,4.3506]
[1717045051920,8.7965,170.18,170.13,7.47]
[1717045052330,8.7965,170.18,170.13,9.6448]
[1717045052640,8.7965,170.18,170.13,7.47]
[1717045053816,2.1743,170.17,170.13,7.47]
[1717045054933,6.1083,170.14,170.1,2.1751]
[1717045056334,6.1083,170.14,170.1,9.6451]
[1717045056825,6.1083,170.14,170.1,7.47]
[1717045057437,17.9512,170.15,170.04,2.1758]
[1717045057438,2.1752,170.1,170.04,2.1758]
[1717045057636,2.1752,170.1,170.05,2.1757]
[1717045057836,13.31149797,170.09,170.05,2.1757]
[1717045058024,7.07019797,170.08,170.05,2.1757]
[1717045058419,7.07019797,170.08,170.01,11.8226]
[1717045058618,9.24559797,170.08,170.03,2.176]
[1717045058930,11.36761955,170.13,170.04,2.1759]
[1717045058931,7.07019797,170.07,170.04,2.1759]
[1717045059125,4.84321955,170.13,170.03,7.47]
[1717045059126,7.07019797,170.06,170.05,2.1758]
[1717045059429,7.07019797,170.09,170.05,2.1758]
[1717045060036,7.07019797,170.09,170.04,2.1759]
[1717045060624,7.07019797,170.09,170.05,2.1758]
[1717045061238,7.07019797,170.09,170.04,2.1759]
[1717045061441,7.07019797,170.09,170.05,2.1757]
[1717045061741,7.07019797,170.08,170.05,2.1757]
[1717045061928,7.07019797,170.07,170.05,2.1757]
[1717045062128,2.1751,170.11,170.05,2.1757]
[1717045062323,9.24545388,170.1,170.05,2.1757]
[1717045062523,7.07035388,170.09,170.07,23.9559]
[1717045062723,19.14236425,170.18,170.12,2.1749]
[1717045062925,9.24437975,170.17,170.14,7.47]
[1717045063132,7.07007975,170.16,170.14,7.47]
[1717045063344,7.07007975,170.15,170.14,7.47]
[1717045064037,7.07007975,170.18,170.14,7.47]
[1717045064731,9.24417975,170.18,170.14,7.47]
[1717045064933,7.07007975,170.17,170.14,7.47]
[1717045065528,7.07007975,170.16,170.14,7.47]
[1717045065836,2.174,170.19,170.13,9.6448]
[1717045069033,2.1744,170.16,170.1,2.1751]
[1717045069544,2.1744,170.16,170.1,9.6451]
[1717045070136,2.1745,170.15,170.1,9.6451]
[1717045070941,2.1745,170.15,170.1,7.47]
[1717045072149,2.1746,170.14,170.09,2.1752]
[1717045072333,2.1746,170.14,170.1,7.47]
[1717045072525,6.5168,170.13,170.06,4.3513]
[1717045072732,8.6916,170.13,170.08,2.1754]
[1717045075657,6.5168,170.13,170.08,2.1754]
[1717045076037,2.1747,170.14,170.08,9.6454]
[1717045076376,2.1747,170.14,170.09,2.1752]
[1717045076855,22.4282,170.13,170.09,2.1752]
[1717045077152,24.603,170.13,170.08,9.6454]
[1717045077542,6.4252,170.13,170.09,2.1752]
[1717045077961,6.4252,170.13,170.08,9.6454]
[1717045078157,6.4252,170.13,170.06,2.1755]
[1717045078457,2.175,170.12,170.07,9.6455]
[1717045080858,2.175,170.12,170.07,2.1755]
[1717045081063,2.175,170.12,170.07,9.6455]
[1717045082563,6.5375,170.11,170.07,2.1755]
[1717045083267,6.5375,170.11,170.06,9.6456]
[1717045085665,2.175,170.11,170.06,9.6456]
[1717045085965,8.4972,170.1,170.04,9.6458]
[1717045086376,8.4972,170.1,170.05,2.1758]
[1717045087245,8.4972,170.1,170.04,9.6459]
[1717045088370,8.4972,170.1,170.04,2.1759]
[1717045088551,8.4972,170.1,170.05,2.1758]
[1717045088953,17.8664,170.11,170.06,2.1756]
[1717045089477,24.4945,170.11,170.05,2.1757]
[1717045089680,24.4945,170.11,170.05,9.6457]
[1717045091065,2.1751,170.1,170.05,9.6457]
[1717045091771,2.1751,170.1,170.05,2.1757]
[1717045091978,2.1751,170.1,170.05,9.6457]
[1717045092182,21.8467,170.09,170.05,9.6457]
[1717045092359,24.022,170.09,170.05,7.47]
[1717045092677,24.022,170.09,170.04,9.6459]
[1717045092878,21.8467,170.09,170.05,7.47]
[1717045093054,6.5977,170.09,170.05,7.47]
[1717045093379,6.5977,170.09,170.05,9.6458]
[1717045097785,8.2595,170.1,170.05,9.6458]
[1717045100008,6.0843,170.1,170.06,2.1756]
[1717045101100,2.1751,170.11,170.06,2.1756]
[1717045101279,16.96855591,170.12,170.1,7.47]
[1717045101804,2.1746,170.15,170.1,7.47]
[1717045102487,2.1746,170.15,170.1,9.6451]
[1717045103900,19.13786871,170.17,170.08,4.3508]
[1717045104208,15.0336,170.22,170.14,2.1746]
[1717045104376,2.174,170.2,170.16,7.47]
[1717045104883,23.4457574,170.21,170.16,7.47]
[1717045105993,2.174,170.19,170.16,7.47]
[1717045106297,2.174,170.19,170.15,7.47]
[1717045109297,6.4826,170.21,170.15,7.47]
[1717045109502,2.1739,170.2,170.15,7.47]
[1717045110845,2.1739,170.2,170.16,7.47]
[1717045111191,4.3468,170.24,170.17,7.47]
[1717045111508,2.1738,170.21,170.18,7.47]
[1717045115608,2.1738,170.21,170.19,7.47]
[1717045115827,4.3468,170.24,170.19,7.47]
[1717045115828,2.1737,170.22,170.19,7.47]
[1717045116500,2.1737,170.21,170.19,7.47]
[1717045117804,6.2464,170.26,170.2,7.47]
[1717045118115,25.64989948,170.29,170.2,7.47]
[1717045118311,23.12737836,170.28,170.2,7.47]
[1717045118617,27.47307836,170.28,170.22,7.47]
[1717045118797,2.1733,170.25,170.22,7.47]
[1717045122128,2.1731,170.26,170.23,7.47]
[1717045122592,2.1731,170.26,170.2,2.1738]
[1717045122795,2.1731,170.26,170.22,7.47]
[1717045123413,2.1731,170.26,170.21,7.47]
[1717045124320,2.1731,170.26,170.22,7.47]
[1717045125110,4.3461,170.27,170.17,2.1742]
[1717045125318,4.3464,170.26,170.15,6.5871]
[1717045125821,2.1735,170.23,170.15,6.5871]
[1717045126005,2.1737,170.22,170.16,2.1744]
[1717045126205,2.1735,170.23,170.17,2.1742]
[1717045126517,4.3464,170.26,170.18,7.47]
[1717045126518,2.1737,170.22,170.18,7.47]
[1717045126719,2.1737,170.21,170.15,2.1745]
[1717045127020,8.6923,170.27,170.2,7.47]
[1717045127402,2.1735,170.23,170.18,2.1741]
[1717045127710,2.1735,170.23,170.18,7.47]
[1717045128626,2.1735,170.23,170.19,7.47]
[1717045128831,10.8648,170.28,170.2,7.47]
[1717045129130,10.8648,170.28,170.18,2.174]
[1717045129131,10.8648,170.28,170.21,7.47]
[1717045129424,2.1733,170.25,170.21,7.47]
[1717045130410,2.1733,170.25,170.22,7.47]
[1717045131327,2.1731,170.26,170.22,7.47]
[1717045136024,6.1741,170.24,170.18,2.174]
[1717045136209,6.1741,170.24,170.18,9.644]
[1717045136736,8.3475,170.24,170.19,2.174]
[1717045136912,6.1741,170.24,170.19,2.174]
[1717045139128,8.3475,170.24,170.19,2.174]
[1717045139332,2.1735,170.23,170.17,2.1742]
[1717045139630,8.3476,170.23,170.17,2.1742]
[1717045139814,2.1736,170.22,170.16,9.6443]
[1717045140417,2.1736,170.22,170.16,2.1743]
[1717045140612,2.1736,170.22,170.17,2.1742]
[1717045140807,8.8378,170.22,170.16,2.1743]
[1717045141433,6.6642,170.22,170.17,2.1742]
[1717045141836,2.1738,170.21,170.16,2.1743]
[1717045142025,2.1739,170.2,170.15,2.1745]
[1717045142233,2.1742,170.18,170.13,7.47]
[1717045142627,2.1742,170.18,170.12,9.6448]
[1717045143337,2.1742,170.17,170.11,2.1749]
[1717045143517,2.1742,170.17,170.11,9.6449]
[1717045144328,2.1742,170.17,170.11,2.1749]
[1717045144532,2.1742,170.17,170.12,2.1749]
[1717045145040,2.1742,170.18,170.12,2.1749]
[1717045148517,2.1742,170.18,170.11,7.47]
[1717045148518,2.1742,170.18,170.13,2.1747]
[1717045148734,8.3763,170.18,170.13,2.1747]
[1717045149432,16.5725,170.21,170.13,2.1747]
[1717045149634,19.13677719,170.2,170.15,7.47]
[1717045149921,16.96277719,170.2,170.15,9.6445]
[1717045150122,2.1738,170.21,170.16,2.1744]
[1717045150322,25.33628091,170.22,170.16,9.6444]
[1717045150637,25.33628091,170.22,170.0,60.7503366]
[1717045150638,6.2021,170.18,170.08,8.7017]
[1717045150847,6.2021,170.18,170.13,9.6447]
[1717045151133,6.2021,170.18,170.13,2.1747]
[1717045151549,6.2021,170.18,170.12,7.47]
[1717045151550,6.2021,170.18,170.14,2.1746]
[1717045153636,8.3646,170.17,170.11,2.1749]
[1717045153834,6.1903,170.16,170.12,2.1749]
[1717045157222,10.8692,170.21,170.08,8.7017]
[1717045157223,2.1741,170.18,170.13,2.1747]
[1717045157426,2.1741,170.18,170.13,9.6447]
[1717045157640,8.639,170.18,170.13,9.6447]
[1717045158049,8.639,170.18,170.13,2.1747]
[1717045158229,8.639,170.18,170.12,9.6448]
[1717045158230,2.1742,170.17,170.12,9.6448]
[1717045158940,6.4649,170.18,170.13,9.6447]
[1717045159252,16.96323458,170.21,170.14,9.6446]
[1717045159423,2.1739,170.2,170.14,9.6446]
[1717045159924,2.1739,170.2,170.15,2.1745]
[1717045160130,2.1739,170.2,170.15,9.6445]
[1717045160859,2.1739,170.2,170.14,9.6446]
[1717045161346,2.1739,170.2,170.15,2.1745]
[1717045161529,2.1739,170.2,170.14,9.6446]
[1717045161734,2.174,170.19,170.14,9.6446]
[1717045162241,2.174,170.19,170.14,7.47]
[1717045162952,2.174,170.19,170.14,9.6446]
[1717045164442,2.174,170.19,170.15,7.47]
[1717045165347,2.1739,170.2,170.15,7.47]
[1717045165544,2.1739,170.2,170.14,2.1746]
[1717045165753,2.1739,170.2,170.15,7.47]
[1717045166444,2.1737,170.22,170.18,7.47]
[1717045166948,2.1738,170.21,170.17,7.47]
[1717045168458,2.1736,170.22,170.18,7.47]
[1717045168640,16.95896716,170.24,170.2,2.1738]
[1717045168842,16.95896716,170.24,170.19,6.0594]
[1717045168843,2.1729,170.28,170.23,7.47]
[1717045169034,8.31493972,170.28,170.23,7.47]
[1717045169236,8.31493972,170.28,170.24,7.47]
[1717045169445,2.1729,170.28,170.24,7.47]
[1717045169941,2.1729,170.28,170.22,2.1736]
[1717045170146,2.1729,170.28,170.25,7.47]
[1717045170351,19.12826825,170.29,170.26,7.47]
[1717045170653,2.1728,170.29,170.26,7.47]
[1717045173067,2.1726,170.3,170.26,7.47]
[1717045174750,2.1726,170.3,170.25,7.47]
[1717045175353,2.1726,170.3,170.25,9.6432]
[1717045175564,2.1725,170.31,170.25,9.6432]
[1717045175765,2.1725,170.31,170.26,7.47]
[1717045177159,2.1726,170.3,170.26,7.47]
[1717045178273,8.3475,170.3,170.24,2.1733]
[1717045178457,2.1726,170.3,170.25,7.47]
[1717045179874,2.1726,170.3,170.25,9.6432]
[1717045180549,2.1726,170.3,170.26,7.47]
[1717045181168,2.1725,170.31,170.26,7.47]
[1717045182074,2.1727,170.3,170.2,28.569]
[1717045182268,2.1727,170.3,170.25,7.47]
[1717045182467,2.1727,170.3,170.24,2.1733]
[1717045182671,2.1727,170.3,170.25,7.47]
[1717045186468,2.1727,170.3,170.25,9.6432]
[1717045187179,2.1725,170.31,170.25,9.6432]
[1717045187476,2.1725,170.31,170.26,7.47]
[1717045188471,8.6656,170.3,170.25,9.6432]
[1717045189173,2.1726,170.3,170.25,9.6432]
[1717045191298,22.1748,170.29,170.22,2.1736]
[1717045191472,2.1729,170.28,170.22,2.1736]
[1717045191881,2.173,170.27,170.21,2.1737]
[1717045194901,2.173,170.27,170.22,2.1736]
[1717045196499,2.173,170.27,170.21,9.6437]
[1717045199601,2.173,170.27,170.22,2.1736]
[1717045200098,2.1729,170.28,170.22,2.1736]
[1717045200309,2.1731,170.26,170.2,2.1738]
[1717045200481,2.1733,170.25,170.2,2.1738]
[1717045200800,4.346,170.27,170.18,2.174]
[1717045201106,2.1736,170.23,170.18,2.174]
[1717045201701,6.171,170.25,170.16,2.1744]
[1717045201888,2.1737,170.22,170.16,2.1744]
[1717045202081,2.1737,170.21,170.16,2.1744]
[1717045202410,2.1737,170.22,170.16,2.1744]
[1717045202790,1.6737,170.22,170.16,2.1744]
[1717045203403,2.1735,170.23,170.18,2.174]
[1717045204205,2.1734,170.24,170.18,2.174]